[Event "Titled Tuesday Blitz April 26 Late 2022"]
[White "Melikhov, Evgeny V."]
[Black "Jegorovas, Aleksandras"]
[WhiteFideId "4122046"]
[BlackFideId "12801950"]
[WhiteElo "1931"]
[BlackElo "2247"]
[Result "1/2-1/2"]
[Round "07"]
[TimeControl "180+1"]
[Date "2022.04.26"]
[WhiteClock "0:00:09"]
[BlackClock "0:00:21"]

1. d4 {[%clk 0:03:00]}  e6 {[%clk 0:02:58]} 2. c4 {[%clk 0:03:00]}  Nf6 {[%clk 0:02:57]} 3. Nc3 {[%clk 0:03:00]}  Bb4 {[%clk 0:02:57]} 4. Qc2 {[%clk 0:03:00]}  O-O {[%clk 0:02:56]} 5. e4 {[%clk 0:03:00]}  d5 {[%clk 0:02:55]} 6. e5 {[%clk 0:03:00]}  Ne4 {[%clk 0:02:55]} 7. Bd3 {[%clk 0:03:00]}  c5 {[%clk 0:02:52]} 8. Nf3 {[%clk 0:03:00]}  cxd4 {[%clk 0:02:52]} 9. Nxd4 {[%clk 0:02:59]}  Nd7 {[%clk 0:02:53]} 10. Bf4 {[%clk 0:02:59]}  Ndc5 {[%clk 0:02:48]} 11. O-O {[%clk 0:02:45]}  Bxc3 {[%clk 0:02:41]} 12. bxc3 {[%clk 0:02:44]}  Qh4 {[%clk 0:02:36]} 13. g3 {[%clk 0:02:40]}  Qh5 {[%clk 0:02:32]} 14. cxd5 {[%clk 0:02:20]}  exd5 {[%clk 0:02:29]} 15. f3 {[%clk 0:02:19]}  Nxd3 {[%clk 0:02:18]} 16. Qxd3 {[%clk 0:01:59]}  Nc5 {[%clk 0:02:18]} 17. Qe3 {[%clk 0:01:35]}  Ne6 {[%clk 0:02:15]} 18. g4 {[%clk 0:01:26]}  Qg6 {[%clk 0:02:05]} 19. Bg3 {[%clk 0:01:26]}  Nxd4 {[%clk 0:01:56]} 20. cxd4 {[%clk 0:01:25]}  f5 {[%clk 0:01:55]} 21. exf6 {[%clk 0:01:21]}  Qxf6 {[%clk 0:01:53]} 22. Be5 {[%clk 0:01:19]}  Qg6 {[%clk 0:01:50]} 23. Rac1 {[%clk 0:01:15]}  Be6 {[%clk 0:01:44]} 24. Rc7 {[%clk 0:01:13]}  Rf7 {[%clk 0:01:44]} 25. Rxf7 {[%clk 0:01:12]}  Qxf7 {[%clk 0:01:43]} 26. Rc1 {[%clk 0:01:11]}  Rc8 {[%clk 0:01:42]} 27. Rxc8+ {[%clk 0:01:08]}  Bxc8 {[%clk 0:01:42]} 28. Kg2 {[%clk 0:01:08]}  h5 {[%clk 0:01:40]} 29. h3 {[%clk 0:01:05]}  hxg4 {[%clk 0:01:39]} 30. hxg4 {[%clk 0:01:05]}  Be6 {[%clk 0:01:32]} 31. Qg5 {[%clk 0:01:05]}  Qd7 {[%clk 0:01:32]} 32. Kg3 {[%clk 0:01:02]}  b5 {[%clk 0:01:29]} 33. f4 {[%clk 0:01:01]}  Qf7 {[%clk 0:01:07]} 34. f5 {[%clk 0:01:01]}  Bd7 {[%clk 0:01:03]} 35. Qd8+ {[%clk 0:00:47]}  Be8 {[%clk 0:01:03]} 36. Kf4 {[%clk 0:00:40]}  Qd7 {[%clk 0:01:01]} 37. Qa8 {[%clk 0:00:25]}  b4 {[%clk 0:00:50]} 38. g5 {[%clk 0:00:23]}  g6 {[%clk 0:00:45]} 39. fxg6 {[%clk 0:00:14]}  a5 {[%clk 0:00:40]} 40. g7 {[%clk 0:00:11]}  a4 {[%clk 0:00:32]} 41. Qa6 {[%clk 0:00:10]}  Qh3 {[%clk 0:00:24]} 42. Qa8 {[%clk 0:00:04]}  Qf1+ {[%clk 0:00:22]} 43. Ke3 {[%clk 0:00:04]}  Qe1+ {[%clk 0:00:20]} 44. Kf4 {[%clk 0:00:04]}  Qf2+ {[%clk 0:00:20]} 45. Kg4 {[%clk 0:00:04]}  Qg2+ {[%clk 0:00:19]} 46. Kf4 {[%clk 0:00:05]}  Qf2+ {[%clk 0:00:19]} 47. Kg4 {[%clk 0:00:04]}  Qf7 {[%clk 0:00:18]} 48. Qb8 {[%clk 0:00:02]}  b3 {[%clk 0:00:17]} 49. axb3 {[%clk 0:00:02]}  axb3 {[%clk 0:00:17]} 50. Qxb3 {[%clk 0:00:02]}  Bd7+ {[%clk 0:00:17]} 51. Kg3 {[%clk 0:00:02]}  Qe6 {[%clk 0:00:17]} 52. Qb8+ {[%clk 0:00:01]}  Be8 {[%clk 0:00:16]} 53. Qd8 {[%clk 0:00:01]}  Qf7 {[%clk 0:00:15]} 54. Qf6 {[%clk 0:00:01]}  Qxf6 {[%clk 0:00:14]} 55. gxf6 {[%clk 0:00:02]}  Kf7 {[%clk 0:00:14]} 56. Kf4 {[%clk 0:00:02]}  Kg8 {[%clk 0:00:15]} 57. Kg5 {[%clk 0:00:03]}  Kf7 {[%clk 0:00:14]} 58. Bd6 {[%clk 0:00:04]}  Kg8 {[%clk 0:00:14]} 59. Be7 {[%clk 0:00:05]}  Kf7 {[%clk 0:00:15]} 60. Kf4 {[%clk 0:00:06]}  Kg8 {[%clk 0:00:15]} 61. Ke5 {[%clk 0:00:07]}  Bf7 {[%clk 0:00:14]} 62. Kd6 {[%clk 0:00:07]}  Kh7 {[%clk 0:00:14]} 63. Ke5 {[%clk 0:00:07]}  Kg8 {[%clk 0:00:15]} 64. Kd6 {[%clk 0:00:07]}  Kh7 {[%clk 0:00:15]} 65. Bf8 {[%clk 0:00:07]}  Kg8 {[%clk 0:00:15]} 66. Ke7 {[%clk 0:00:08]}  Bh5 {[%clk 0:00:15]} 67. Ke6 {[%clk 0:00:08]}  Bf7+ {[%clk 0:00:15]} 68. Ke5 {[%clk 0:00:08]}  Kh7 {[%clk 0:00:15]} 69. Kf5 {[%clk 0:00:08]}  Kg8 {[%clk 0:00:15]} 70. Bd6 {[%clk 0:00:08]}  Kh7 {[%clk 0:00:15]} 71. Be5 {[%clk 0:00:08]}  Kg8 {[%clk 0:00:15]} 72. Kg5 {[%clk 0:00:09]}  Kh7 {[%clk 0:00:16]} 73. Bg3 {[%clk 0:00:09]}  Kg8 {[%clk 0:00:16]} 74. Kf5 {[%clk 0:00:09]}  Kh7 {[%clk 0:00:16]} 75. Ke5 {[%clk 0:00:09]}  Kg8 {[%clk 0:00:16]} 76. Bh4 {[%clk 0:00:10]}  Kh7 {[%clk 0:00:17]} 77. Kd6 {[%clk 0:00:10]}  Kg8 {[%clk 0:00:17]} 78. Ke7 {[%clk 0:00:10]}  Bg6 {[%clk 0:00:17]} 79. Bg5 {[%clk 0:00:09]}  Bf7 {[%clk 0:00:18]} 80. Bf4 {[%clk 0:00:08]}  Bg6 {[%clk 0:00:18]} 81. Ke6 {[%clk 0:00:08]}  Bf7+ {[%clk 0:00:18]} 82. Kf5 {[%clk 0:00:08]}  Kh7 {[%clk 0:00:17]} 83. Kg5 {[%clk 0:00:09]}  Kg8 {[%clk 0:00:18]} 84. Kh6 {[%clk 0:00:09]}  Be6 {[%clk 0:00:18]} 85. Bd6 {[%clk 0:00:08]}  Bf7 {[%clk 0:00:18]} 86. Be5 {[%clk 0:00:08]}  Be6 {[%clk 0:00:19]} 87. Kg6 {[%clk 0:00:08]}  Bf7+ {[%clk 0:00:19]} 88. Kf5 {[%clk 0:00:08]}  Kh7 {[%clk 0:00:19]} 89. Bd6 {[%clk 0:00:08]}  Kg8 {[%clk 0:00:19]} 90. Ke5 {[%clk 0:00:08]}  Kh7 {[%clk 0:00:20]} 91. Bf8 {[%clk 0:00:08]}  Kg8 {[%clk 0:00:20]} 92. Kd6 {[%clk 0:00:08]}  Kh7 {[%clk 0:00:21]} 93. Ke7 {[%clk 0:00:08]}  Kg8 {[%clk 0:00:21]} 94. Kd6 {[%clk 0:00:08]}  Kh7 {[%clk 0:00:20]} 95. Ke5 {[%clk 0:00:08]}  Kg8 {[%clk 0:00:21]} 96. Kd6 {[%clk 0:00:09]} 1/2-1/2


[Site "https://www.chess.com"]

[Event "Titled Tuesday Blitz April 26 Late 2022"]
[White "Melkumyan, Hrant"]
[Black "Chigaev, Maksim"]
[WhiteFideId "13302485"]
[BlackFideId "4108116"]
[WhiteElo "2604"]
[BlackElo "2478"]
[Result "1-0"]
[Round "07"]
[TimeControl "180+1"]
[Date "2022.04.26"]
[WhiteClock "0:00:06"]
[BlackClock "0:00:01"]

1. c4 {[%clk 0:03:00]}  e5 {[%clk 0:02:57]} 2. g3 {[%clk 0:03:00]}  Nc6 {[%clk 0:02:57]} 3. Bg2 {[%clk 0:03:00]}  g6 {[%clk 0:02:57]} 4. Nc3 {[%clk 0:03:01]}  Bg7 {[%clk 0:02:58]} 5. e3 {[%clk 0:03:01]}  d6 {[%clk 0:02:57]} 6. Nge2 {[%clk 0:03:01]}  Nge7 {[%clk 0:02:43]} 7. d4 {[%clk 0:03:00]}  exd4 {[%clk 0:02:39]} 8. exd4 {[%clk 0:02:58]}  O-O {[%clk 0:02:39]} 9. O-O {[%clk 0:02:51]}  Nf5 {[%clk 0:02:32]} 10. d5 {[%clk 0:02:50]}  Ne5 {[%clk 0:02:22]} 11. b3 {[%clk 0:02:49]}  a5 {[%clk 0:02:15]} 12. a4 {[%clk 0:02:42]}  h5 {[%clk 0:02:16]} 13. Ra2 {[%clk 0:02:26]}  h4 {[%clk 0:02:11]} 14. Nb5 {[%clk 0:02:26]}  h3 {[%clk 0:02:05]} 15. Bh1 {[%clk 0:02:25]}  Re8 {[%clk 0:01:56]} 16. Nf4 {[%clk 0:02:25]}  Bd7 {[%clk 0:01:49]} 17. Re2 {[%clk 0:02:19]}  Nh6 {[%clk 0:01:21]} 18. Ree1 {[%clk 0:01:45]}  Bg4 {[%clk 0:01:01]} 19. Qc2 {[%clk 0:01:45]}  Qd7 {[%clk 0:00:46]} 20. Nd4 {[%clk 0:01:40]}  c5 {[%clk 0:00:30]} 21. dxc6 {[%clk 0:01:38]}  bxc6 {[%clk 0:00:31]} 22. Bb2 {[%clk 0:01:39]}  Rab8 {[%clk 0:00:26]} 23. Re3 {[%clk 0:01:35]}  Nf5 {[%clk 0:00:21]} 24. Nxf5 {[%clk 0:01:34]}  Bxf5 {[%clk 0:00:22]} 25. Qd1 {[%clk 0:01:34]}  Bg4 {[%clk 0:00:15]} 26. Qc2 {[%clk 0:01:31]}  Bf5 {[%clk 0:00:13]} 27. Qd2 {[%clk 0:01:31]}  Qc7 {[%clk 0:00:10]} 28. Rfe1 {[%clk 0:01:27]}  Red8 {[%clk 0:00:10]} 29. Bc3 {[%clk 0:01:20]}  Ra8 {[%clk 0:00:11]} 30. Qe2 {[%clk 0:01:07]}  Bg4 {[%clk 0:00:09]} 31. Qb2 {[%clk 0:01:02]}  Rab8 {[%clk 0:00:07]} 32. Qd2 {[%clk 0:01:00]}  Ra8 {[%clk 0:00:07]} 33. c5 {[%clk 0:00:54]}  dxc5 {[%clk 0:00:05]} 34. Qb2 {[%clk 0:00:54]}  Rd4 {[%clk 0:00:05]} 35. Ne2 {[%clk 0:00:42]}  Bxe2 {[%clk 0:00:03]} 36. Bxd4 {[%clk 0:00:39]}  cxd4 {[%clk 0:00:03]} 37. R3xe2 {[%clk 0:00:39]}  Rd8 {[%clk 0:00:02]} 38. Qd2 {[%clk 0:00:34]}  d3 {[%clk 0:00:01]} 39. Re4 {[%clk 0:00:34]}  f5 {[%clk 0:00:01]} 40. R4e3 {[%clk 0:00:29]}  Kh7 {[%clk 0:00:02]} 41. Qd1 {[%clk 0:00:17]}  c5 {[%clk 0:00:02]} 42. Rf1 {[%clk 0:00:09]}  c4 {[%clk 0:00:03]} 43. bxc4 {[%clk 0:00:09]}  Qxc4 {[%clk 0:00:03]} 44. Qe1 {[%clk 0:00:07]}  Ng4 {[%clk 0:00:03]} 45. Re7 {[%clk 0:00:06]}  d2 {[%clk 0:00:03]} 46. Qa1 {[%clk 0:00:06]}  Rg8 {[%clk 0:00:03]} 47. Rd7 {[%clk 0:00:06]}  Kh6 {[%clk 0:00:03]} 48. Qb1 {[%clk 0:00:05]}  Re8 {[%clk 0:00:02]} 49. Rxd2 {[%clk 0:00:05]}  Bc3 {[%clk 0:00:03]} 50. Rc2 {[%clk 0:00:05]}  Re2 {[%clk 0:00:03]} 51. Qc1+ {[%clk 0:00:05]}  Bd2 {[%clk 0:00:02]} 52. Rxc4 {[%clk 0:00:05]}  Bxc1 {[%clk 0:00:01]} 53. Rcxc1 {[%clk 0:00:06]}  Rd2 {[%clk 0:00:01]} 54. Bf3 {[%clk 0:00:06]} 1-0


[Site "https://www.chess.com"]

[Event "Titled Tuesday Blitz April 26 Late 2022"]
[White "Moussard, Jules"]
[Black "Bluebaum, Matthias"]
[WhiteFideId "642908"]
[BlackFideId "24651516"]
[WhiteElo "2589"]
[BlackElo "2550"]
[Result "1/2-1/2"]
[Round "07"]
[TimeControl "180+1"]
[Date "2022.04.26"]
[WhiteClock "0:00:08"]
[BlackClock "0:00:09"]

1. Nf3 {[%clk 0:03:00]}  d5 {[%clk 0:03:00]} 2. b3 {[%clk 0:03:01]}  Bg4 {[%clk 0:03:00]} 3. e3 {[%clk 0:02:59]}  Nd7 {[%clk 0:02:58]} 4. h3 {[%clk 0:02:58]}  Bh5 {[%clk 0:02:58]} 5. Bb2 {[%clk 0:02:57]}  e6 {[%clk 0:02:58]} 6. d3 {[%clk 0:02:56]}  a5 {[%clk 0:02:56]} 7. a4 {[%clk 0:02:55]}  h6 {[%clk 0:02:47]} 8. Nbd2 {[%clk 0:02:52]}  Ngf6 {[%clk 0:02:48]} 9. Be2 {[%clk 0:02:50]}  Bb4 {[%clk 0:02:45]} 10. O-O {[%clk 0:02:49]}  O-O {[%clk 0:02:45]} 11. Ne5 {[%clk 0:02:47]}  Bxe2 {[%clk 0:02:44]} 12. Qxe2 {[%clk 0:02:48]}  Nxe5 {[%clk 0:02:35]} 13. Bxe5 {[%clk 0:02:49]}  Bd6 {[%clk 0:02:35]} 14. Bb2 {[%clk 0:02:43]}  e5 {[%clk 0:02:29]} 15. e4 {[%clk 0:02:41]}  Re8 {[%clk 0:02:23]} 16. exd5 {[%clk 0:02:36]}  Nxd5 {[%clk 0:02:24]} 17. Qf3 {[%clk 0:02:31]}  c6 {[%clk 0:02:23]} 18. Nc4 {[%clk 0:02:31]}  Bc7 {[%clk 0:02:22]} 19. Rfe1 {[%clk 0:02:31]}  Qg5 {[%clk 0:02:18]} 20. Re4 {[%clk 0:02:11]}  f5 {[%clk 0:01:54]} 21. Re2 {[%clk 0:02:11]}  Nf4 {[%clk 0:01:52]} 22. Ree1 {[%clk 0:01:45]}  Ng6 {[%clk 0:01:52]} 23. Bc1 {[%clk 0:01:08]}  Qf6 {[%clk 0:01:48]} 24. Bb2 {[%clk 0:01:08]}  Qf7 {[%clk 0:01:25]} 25. Qh5 {[%clk 0:01:01]}  Re6 {[%clk 0:01:16]} 26. Re3 {[%clk 0:00:58]}  b5 {[%clk 0:01:00]} 27. axb5 {[%clk 0:00:58]}  cxb5 {[%clk 0:01:00]} 28. Na3 {[%clk 0:00:58]}  Rb8 {[%clk 0:00:48]} 29. Rae1 {[%clk 0:00:53]}  Rf6 {[%clk 0:00:41]} 30. c4 {[%clk 0:00:39]}  bxc4 {[%clk 0:00:39]} 31. dxc4 {[%clk 0:00:40]}  Qd7 {[%clk 0:00:25]} 32. Nb5 {[%clk 0:00:36]}  Bb6 {[%clk 0:00:25]} 33. Rg3 {[%clk 0:00:27]}  Nf4 {[%clk 0:00:25]} 34. Qd1 {[%clk 0:00:25]}  Qxd1 {[%clk 0:00:23]} 35. Rxd1 {[%clk 0:00:25]}  Ne2+ {[%clk 0:00:24]} 36. Kh2 {[%clk 0:00:26]}  Nxg3 {[%clk 0:00:23]} 37. Bxe5 {[%clk 0:00:27]}  Ne4 {[%clk 0:00:07]} 38. Bxb8 {[%clk 0:00:26]}  Nxf2 {[%clk 0:00:07]} 39. Rd6 {[%clk 0:00:24]}  Ne4 {[%clk 0:00:06]} 40. Rxf6 {[%clk 0:00:23]}  Nxf6 {[%clk 0:00:07]} 41. Kg3 {[%clk 0:00:19]}  g5 {[%clk 0:00:07]} 42. Kf3 {[%clk 0:00:19]}  Kf7 {[%clk 0:00:06]} 43. g4 {[%clk 0:00:20]}  fxg4+ {[%clk 0:00:06]} 44. hxg4 {[%clk 0:00:20]}  Ke6 {[%clk 0:00:07]} 45. Bd6 {[%clk 0:00:20]}  Nd7 {[%clk 0:00:07]} 46. Ke4 {[%clk 0:00:18]}  Bc5 {[%clk 0:00:06]} 47. Bg3 {[%clk 0:00:17]}  Bb6 {[%clk 0:00:07]} 48. Nd4+ {[%clk 0:00:12]}  Bxd4 {[%clk 0:00:02]} 49. Kxd4 {[%clk 0:00:13]}  Nf6 {[%clk 0:00:03]} 50. Be1 {[%clk 0:00:14]}  Nxg4 {[%clk 0:00:03]} 51. Bxa5 {[%clk 0:00:14]}  h5 {[%clk 0:00:04]} 52. Ke4 {[%clk 0:00:13]}  h4 {[%clk 0:00:04]} 53. Bd8 {[%clk 0:00:08]}  h3 {[%clk 0:00:04]} 54. Kf3 {[%clk 0:00:08]}  Kf5 {[%clk 0:00:03]} 55. b4 {[%clk 0:00:05]}  Ne5+ {[%clk 0:00:03]} 56. Kg3 {[%clk 0:00:04]}  g4 {[%clk 0:00:02]} 57. b5 {[%clk 0:00:02]}  Nxc4 {[%clk 0:00:02]} 58. b6 {[%clk 0:00:03]}  Nd6 {[%clk 0:00:03]} 59. Bc7 {[%clk 0:00:03]}  Nb7 {[%clk 0:00:03]} 60. Bb8 {[%clk 0:00:03]}  Nc5 {[%clk 0:00:04]} 61. Bc7 {[%clk 0:00:03]}  Nb7 {[%clk 0:00:04]} 62. Bb8 {[%clk 0:00:03]}  Kg5 {[%clk 0:00:05]} 63. Bf4+ {[%clk 0:00:04]}  Kh5 {[%clk 0:00:06]} 64. Bc7 {[%clk 0:00:04]}  Kg5 {[%clk 0:00:06]} 65. Bf4+ {[%clk 0:00:05]}  Kf5 {[%clk 0:00:07]} 66. Bc7 {[%clk 0:00:06]}  Nc5 {[%clk 0:00:07]} 67. Bb8 {[%clk 0:00:06]}  Kg5 {[%clk 0:00:07]} 68. Bf4+ {[%clk 0:00:06]}  Kh5 {[%clk 0:00:07]} 69. Bc7 {[%clk 0:00:06]}  Kg5 {[%clk 0:00:07]} 70. Bf4+ {[%clk 0:00:06]}  Kh5 {[%clk 0:00:07]} 71. Bc7 {[%clk 0:00:07]}  Nb7 {[%clk 0:00:08]} 72. Bb8 {[%clk 0:00:07]}  Na5 {[%clk 0:00:08]} 73. Bc7 {[%clk 0:00:08]}  Nb7 {[%clk 0:00:09]} 74. Bb8 {[%clk 0:00:08]}  Kg5 {[%clk 0:00:09]} 75. Bf4+ {[%clk 0:00:08]} 1/2-1/2


[Site "https://www.chess.com"]

[Event "Titled Tuesday Blitz April 26 Late 2022"]
[White "Nazaretyan, Tigran"]
[Black "Bryakin, Mikhail"]
[WhiteFideId "24162345"]
[BlackFideId "4165314"]
[WhiteElo "2225"]
[BlackElo "2417"]
[Result "0-1"]
[Round "07"]
[TimeControl "180+1"]
[Date "2022.04.26"]
[WhiteClock "0:01:06"]
[BlackClock "0:01:31"]

1. d4 {[%clk 0:03:00]}  Nf6 {[%clk 0:02:47]} 2. c4 {[%clk 0:03:00]}  c5 {[%clk 0:02:42]} 3. d5 {[%clk 0:03:00]}  e6 {[%clk 0:02:43]} 4. Nc3 {[%clk 0:03:00]}  exd5 {[%clk 0:02:43]} 5. cxd5 {[%clk 0:03:00]}  d6 {[%clk 0:02:44]} 6. e4 {[%clk 0:03:00]}  g6 {[%clk 0:02:44]} 7. Bd3 {[%clk 0:03:00]}  Bg7 {[%clk 0:02:44]} 8. h3 {[%clk 0:03:00]}  O-O {[%clk 0:02:42]} 9. Nf3 {[%clk 0:02:57]}  b5 {[%clk 0:02:42]} 10. Bxb5 {[%clk 0:02:54]}  Nxe4 {[%clk 0:02:40]} 11. Nxe4 {[%clk 0:02:55]}  Qa5+ {[%clk 0:02:40]} 12. Nfd2 {[%clk 0:02:56]}  Qxb5 {[%clk 0:02:41]} 13. Nxd6 {[%clk 0:02:56]}  Qa6 {[%clk 0:02:41]} 14. N2c4 {[%clk 0:02:57]}  Nd7 {[%clk 0:02:37]} 15. O-O {[%clk 0:02:56]}  Nb6 {[%clk 0:02:32]} 16. Nxc8 {[%clk 0:02:46]}  Raxc8 {[%clk 0:02:25]} 17. Nxb6 {[%clk 0:02:38]}  Qxb6 {[%clk 0:02:26]} 18. a4 {[%clk 0:02:30]}  Rfd8 {[%clk 0:02:22]} 19. Bg5 {[%clk 0:02:28]}  Rd7 {[%clk 0:02:21]} 20. Qg4 {[%clk 0:02:24]}  Qb7 {[%clk 0:02:13]} 21. Rfd1 {[%clk 0:02:16]}  Bd4 {[%clk 0:02:10]} 22. Be3 {[%clk 0:01:56]}  Qxd5 {[%clk 0:02:01]} 23. b4 {[%clk 0:01:49]}  h5 {[%clk 0:01:55]} 24. Qe2 {[%clk 0:01:39]}  Qe6 {[%clk 0:01:49]} 25. Rac1 {[%clk 0:01:35]}  c4 {[%clk 0:01:43]} 26. Qd2 {[%clk 0:01:24]}  Bxe3 {[%clk 0:01:33]} 27. Qxd7 {[%clk 0:01:23]}  Qxd7 {[%clk 0:01:33]} 28. Rxd7 {[%clk 0:01:16]}  Bxc1 {[%clk 0:01:33]} 29. b5 {[%clk 0:01:15]}  c3 {[%clk 0:01:33]} 30. a5 {[%clk 0:01:09]}  c2 {[%clk 0:01:33]} 31. b6 {[%clk 0:01:10]}  axb6 {[%clk 0:01:31]} 32. axb6 {[%clk 0:01:10]}  Bf4 {[%clk 0:01:31]} 33. g3 {[%clk 0:01:08]}  c1=Q+ {[%clk 0:01:31]} 34. Kg2 {[%clk 0:01:08]}  Qc6+ {[%clk 0:01:31]} 35. f3 {[%clk 0:01:08]}  Qxd7 {[%clk 0:01:31]} 36. gxf4 {[%clk 0:01:08]}  Rc2+ {[%clk 0:01:32]} 37. Kg3 {[%clk 0:01:08]}  Qd2 {[%clk 0:01:31]} 38. b7 {[%clk 0:01:06]}  Qf2# {[%clk 0:01:31]} 0-1


[Site "https://www.chess.com"]

[Event "Titled Tuesday Blitz April 26 Late 2022"]
[White "Nozdrachev, Leonid"]
[Black "Rastbod, Ali"]
[WhiteFideId "24113433"]
[BlackFideId "12567477"]
[WhiteElo "2242"]
[BlackElo "2147"]
[Result "0-1"]
[Round "07"]
[TimeControl "180+1"]
[Date "2022.04.26"]
[WhiteClock "0:02:05"]
[BlackClock "0:01:39"]

1. e4 {[%clk 0:02:59]}  c5 {[%clk 0:02:59]} 2. c3 {[%clk 0:02:58]}  Nf6 {[%clk 0:02:59]} 3. e5 {[%clk 0:02:58]}  Nd5 {[%clk 0:03:00]} 4. Nf3 {[%clk 0:02:59]}  Nc6 {[%clk 0:02:59]} 5. d4 {[%clk 0:03:00]}  cxd4 {[%clk 0:03:00]} 6. Bc4 {[%clk 0:02:59]}  e6 {[%clk 0:03:00]} 7. cxd4 {[%clk 0:02:58]}  d6 {[%clk 0:03:00]} 8. O-O {[%clk 0:02:58]}  Be7 {[%clk 0:03:01]} 9. Qe2 {[%clk 0:02:55]}  O-O {[%clk 0:03:01]} 10. Nc3 {[%clk 0:02:54]}  Nxc3 {[%clk 0:03:01]} 11. bxc3 {[%clk 0:02:54]}  dxe5 {[%clk 0:03:02]} 12. dxe5 {[%clk 0:02:55]}  b6 {[%clk 0:02:53]} 13. Nd4 {[%clk 0:02:38]}  Nxd4 {[%clk 0:02:44]} 14. cxd4 {[%clk 0:02:31]}  Qxd4 {[%clk 0:02:00]} 15. Be3 {[%clk 0:02:30]}  Qxe5 {[%clk 0:01:51]} 16. Qf3 {[%clk 0:02:29]}  Bd7 {[%clk 0:01:51]} 17. Rfd1 {[%clk 0:02:24]}  Ba4 {[%clk 0:01:48]} 18. Bd4 {[%clk 0:02:18]}  Bxd1 {[%clk 0:01:48]} 19. Rxd1 {[%clk 0:02:11]}  Qf5 {[%clk 0:01:46]} 20. Qb7 {[%clk 0:02:05]}  Bf6 {[%clk 0:01:45]} 21. Bd3 {[%clk 0:02:05]}  Qg4 {[%clk 0:01:39]} 0-1


[Site "https://www.chess.com"]

[Event "Titled Tuesday Blitz April 26 Late 2022"]
[White "Ohanyan, Emin"]
[Black "Koellner, Ruben Gideon"]
[WhiteFideId "13312022"]
[BlackFideId "12993093"]
[WhiteElo "2731"]
[BlackElo "2621"]
[Result "1-0"]
[Round "07"]
[TimeControl "180+1"]
[Date "2022.04.26"]
[WhiteClock "0:00:02"]
[BlackClock "0:00:44"]

1. e4 {[%clk 0:01:19]}  d6 {[%clk 0:02:55]} 2. d4 {[%clk 0:01:20]}  Nf6 {[%clk 0:02:55]} 3. Nc3 {[%clk 0:01:20]}  e5 {[%clk 0:02:56]} 4. Nf3 {[%clk 0:01:20]}  Nbd7 {[%clk 0:02:56]} 5. Bc4 {[%clk 0:01:21]}  Be7 {[%clk 0:02:56]} 6. O-O {[%clk 0:01:21]}  c6 {[%clk 0:02:57]} 7. a4 {[%clk 0:01:22]}  h6 {[%clk 0:02:57]} 8. h3 {[%clk 0:01:22]}  Qc7 {[%clk 0:02:58]} 9. Re1 {[%clk 0:01:23]}  Nf8 {[%clk 0:02:58]} 10. Be3 {[%clk 0:01:23]}  g5 {[%clk 0:02:59]} 11. Nh2 {[%clk 0:01:23]}  Ng6 {[%clk 0:02:59]} 12. Ng4 {[%clk 0:01:21]}  Bxg4 {[%clk 0:02:59]} 13. hxg4 {[%clk 0:01:22]}  Qc8 {[%clk 0:02:59]} 14. f3 {[%clk 0:01:21]}  h5 {[%clk 0:02:59]} 15. Bxg5 {[%clk 0:01:14]}  hxg4 {[%clk 0:02:58]} 16. f4 {[%clk 0:01:15]}  g3 {[%clk 0:02:42]} 17. f5 {[%clk 0:00:54]}  Nf4 {[%clk 0:02:37]} 18. Bxf4 {[%clk 0:00:41]}  exf4 {[%clk 0:02:38]} 19. Qf3 {[%clk 0:00:40]}  Rh4 {[%clk 0:02:34]} 20. e5 {[%clk 0:00:36]}  dxe5 {[%clk 0:02:34]} 21. dxe5 {[%clk 0:00:36]}  Bc5+ {[%clk 0:02:33]} 22. Kf1 {[%clk 0:00:35]}  Ng4 {[%clk 0:02:33]} 23. Qe4 {[%clk 0:00:16]}  f3 {[%clk 0:02:18]} 24. gxf3 {[%clk 0:00:02]}  Nh2+ {[%clk 0:02:14]} 25. Kg2 {[%clk 0:00:02]}  Rxe4 {[%clk 0:02:12]} 26. Nxe4 {[%clk 0:00:03]}  Bf2 {[%clk 0:02:07]} 27. Nd6+ {[%clk 0:00:03]}  Kf8 {[%clk 0:01:24]} 28. Nxc8 {[%clk 0:00:03]}  Rxc8 {[%clk 0:01:17]} 29. Re2 {[%clk 0:00:04]}  Rd8 {[%clk 0:01:08]} 30. Rxf2 {[%clk 0:00:04]}  gxf2 {[%clk 0:01:08]} 31. Kxh2 {[%clk 0:00:05]}  Rd4 {[%clk 0:01:07]} 32. Bd3 {[%clk 0:00:02]}  Rd5 {[%clk 0:01:08]} 33. f4 {[%clk 0:00:02]}  c5 {[%clk 0:01:04]} 34. Kg3 {[%clk 0:00:02]}  Rd4 {[%clk 0:01:03]} 35. Kxf2 {[%clk 0:00:02]}  Rxf4+ {[%clk 0:01:03]} 36. Ke3 {[%clk 0:00:03]}  Rh4 {[%clk 0:01:02]} 37. Be4 {[%clk 0:00:03]}  b6 {[%clk 0:01:02]} 38. Rd1 {[%clk 0:00:03]}  Ke7 {[%clk 0:01:02]} 39. Rd6 {[%clk 0:00:03]}  Rh3+ {[%clk 0:00:59]} 40. Kf4 {[%clk 0:00:03]}  Rh4+ {[%clk 0:00:59]} 41. Ke3 {[%clk 0:00:04]}  Rh3+ {[%clk 0:00:59]} 42. Kf2 {[%clk 0:00:04]}  f6 {[%clk 0:00:50]} 43. Re6+ {[%clk 0:00:05]}  Kd7 {[%clk 0:00:50]} 44. exf6 {[%clk 0:00:05]}  Rh2+ {[%clk 0:00:48]} 45. Kg3 {[%clk 0:00:05]}  Rh8 {[%clk 0:00:45]} 46. Bc6+ {[%clk 0:00:06]}  Kc7 {[%clk 0:00:45]} 47. f7 {[%clk 0:00:06]}  Rf8 {[%clk 0:00:45]} 48. Be8 {[%clk 0:00:07]}  Kd8 {[%clk 0:00:43]} 49. Kf4 {[%clk 0:00:07]}  Kc7 {[%clk 0:00:44]} 50. Ke5 {[%clk 0:00:08]}  Kd8 {[%clk 0:00:44]} 51. Kd6 {[%clk 0:00:09]}  Rh8 {[%clk 0:00:44]} 52. Bc6 {[%clk 0:00:09]}  Rf8 {[%clk 0:00:43]} 53. Re8+ {[%clk 0:00:05]}  Rxe8 {[%clk 0:00:44]} 54. fxe8=R# {[%clk 0:00:02]} 1-0


[Site "https://www.chess.com"]